bitfinex-derivatives/quotes_BNBF0:USTF0_20251010
["timestamp","ask_amount","ask_price","bid_price","bid_amount"]
[1760127382861,0.79465625,1237.3,1233.9,0.57806336]
[1760127383060,0.79465625,1237.3,1234.3,0.57806336]
[1760127383361,0.79465625,1237.2,1234.3,0.57806336]
[1760127384461,0.79465625,1237.3,1234.4,0.57806336]
[1760127384957,0.79465625,1237.3,1234.5,0.57806336]
[1760127385160,0.79465625,1237.4,1234.5,0.57806336]
[1760127385361,0.79465625,1237.6,1234.6,0.57806336]
[1760127385860,0.79465625,1237.5,1234.8,0.57806336]
[1760127386061,0.79465625,1237.6,1234.8,0.57806336]
[1760127386262,0.79465625,1237.6,1234.9,0.57806336]
[1760127386461,0.79465625,1237.5,1234.9,0.57806336]
[1760127387562,0.93533137,1237.7,1235.0,0.57806336]
[1760127388062,0.14067512,1237.7,1235.0,0.57806336]
[1760127388764,0.14067512,1237.7,1235.1,0.57806336]
[1760127389362,0.14067512,1237.7,1235.0,0.57806336]
[1760127389767,0.14067512,1237.7,1234.9,0.57806336]
[1760127390870,0.93533137,1237.7,1234.9,0.57806336]
[1760127391068,0.93533137,1237.7,1234.8,0.57806336]
[1760127391274,0.79465625,1237.5,1234.7,0.57806336]
[1760127391471,0.14067512,1237.7,1235.3,0.78184654]
[1760127391771,0.14067512,1237.7,1235.7,0.57806336]
[1760127392271,0.14067512,1237.7,1235.5,0.57806336]
[1760127394074,0.14067512,1237.7,1235.4,0.57806336]
[1760127394477,0.14067512,1237.7,1235.5,0.57806336]
[1760127394677,0.14067512,1237.7,1235.4,0.57806336]
[1760127395779,0.14067512,1237.7,1235.2,0.57806336]
[1760127395780,0.93533137,1237.7,1235.2,0.57806336]
[1760127395975,0.93533137,1237.7,1235.1,0.57806336]
[1760127397377,0.79465625,1237.6,1235.1,0.57806336]
[1760127397880,0.79465625,1237.5,1235.1,0.57806336]
[1760127398176,0.79465625,1237.6,1235.1,0.57806336]
[1760127398380,0.79465625,1237.6,1235.0,0.57806336]
[1760127399480,0.93533137,1237.7,1235.1,0.57806336]
[1760127399678,0.93533137,1237.7,1235.2,0.57806336]
[1760127400284,0.14067512,1237.7,1235.1,0.57806336]
[1760127403287,0.93533137,1237.7,1235.2,0.57806336]
[1760127403482,0.79465625,1237.5,1235.1,0.57806336]
[1760127403887,0.79465625,1237.6,1235.0,0.57806336]
[1760127404190,0.79465625,1237.6,1235.1,0.57806336]
[1760127404987,0.14067512,1237.7,1235.3,0.57806336]
[1760127406389,0.14067512,1237.7,1235.3,0.58138309]
[1760127406886,0.14067512,1237.7,1235.4,0.58138309]
[1760127407385,0.14067512,1237.7,1235.5,0.58138309]
[1760127408188,0.14067512,1237.7,1235.4,0.58138309]
[1760127408396,0.14067512,1237.7,1235.5,0.58138309]
[1760127409390,0.14067512,1237.7,1235.6,0.58138309]
[1760127410193,0.14067512,1237.7,1235.3,0.78184654]
[1760127410194,0.14067512,1237.7,1235.8,0.58138309]
[1760127410790,0.14067512,1237.7,1235.7,0.58138309]
[1760127410989,0.14067512,1237.7,1235.8,0.58138309]
[1760127411189,0.14067512,1237.7,1235.7,0.58138309]
[1760127414790,0.14067512,1237.7,1234.0,2.00020695]
[1760127414791,0.14067512,1237.7,1235.6,0.58138309]
[1760127420698,0.14067512,1237.7,1235.7,0.58138309]
[1760127420899,0.14067512,1237.7,1233.9,2.00020695]
[1760127420900,0.14067512,1237.7,1235.9,0.58138309]
[1760127421301,0.14067512,1237.7,1235.7,0.58138309]
[1760127425004,0.14067512,1237.7,1235.8,0.58138309]
[1760127425402,0.14067512,1237.7,1235.7,0.58138309]
[1760127425605,0.14067512,1237.7,1235.8,0.58138309]
[1760127426406,0.14067512,1237.7,1235.7,0.58138309]
[1760127427407,0.14067512,1237.7,1235.8,0.58138309]
[1760127427604,0.14067512,1237.7,1235.9,0.58138309]
[1760127428106,0.14067512,1237.7,1235.7,0.58138309]
[1760127428307,0.14067512,1237.7,1235.6,0.58138309]
[1760127429806,0.14067512,1237.7,1235.4,0.58138309]
[1760127430312,0.14067512,1237.7,1235.5,0.58138309]
[1760127430515,0.14067512,1237.7,1235.4,0.58138309]
[1760127431108,0.14067512,1237.7,1235.3,0.58138309]
[1760127431709,0.14067512,1237.7,1235.2,0.58138309]
[1760127431909,0.14067512,1237.7,1235.0,0.58138309]
[1760127432512,0.14067512,1237.7,1234.9,0.58138309]
[1760127432913,0.14067512,1237.7,1234.8,0.58138309]
[1760127435318,0.14067512,1237.7,1235.0,0.58138309]
[1760127437217,0.14067512,1237.7,1235.1,0.58138309]
[1760127439219,0.14067512,1237.7,1234.9,0.58138309]
[1760127439414,0.93533137,1237.7,1234.8,0.58138309]
[1760127439614,0.14067512,1237.7,1234.8,0.58138309]
[1760127439913,0.79465625,1237.6,1234.6,0.58138309]
[1760127440118,0.79465625,1237.4,1234.6,0.58138309]
[1760127440618,0.79465625,1237.1,1234.3,0.58138309]
[1760127440814,0.79465625,1237.1,1234.0,0.78184654]
[1760127441015,0.79465625,1237.2,1234.3,0.58272256]
[1760127441318,0.79465625,1237.1,1234.3,0.58272256]
[1760127441814,0.79465625,1237.2,1234.3,0.58272256]
[1760127442219,0.79465625,1237.1,1234.3,0.58272256]
[1760127442518,0.79465625,1236.9,1234.3,0.58272256]
[1760127443113,0.79465625,1236.8,1234.2,0.58272256]
[1760127443515,0.79465625,1236.9,1234.2,0.58272256]
[1760127444016,0.79465625,1236.8,1234.2,0.58272256]
[1760127444419,0.79465625,1236.9,1234.2,0.58272256]
[1760127444619,0.79465625,1236.7,1234.2,0.58272256]
[1760127444919,0.79465625,1236.6,1234.1,0.58272256]
[1760127445319,0.79465625,1236.7,1234.1,0.58272256]
[1760127445615,0.79465625,1236.8,1234.0,0.58272256]
[1760127445919,0.79465625,1236.8,1233.9,0.58272256]
[1760127446220,0.79465625,1236.9,1233.9,0.58272256]
[1760127447915,0.79465625,1237.0,1233.8,0.58272256]
[1760127448720,0.79465625,1237.0,1233.7,0.58272256]
[1760127449120,0.79465625,1236.9,1233.8,0.58272256]
[1760127449324,0.79465625,1236.7,1233.7,0.58272256]
[1760127449619,0.79465625,1236.6,1233.7,0.58272256]
[1760127450019,0.14067512,1237.7,1233.7,0.58272256]
[1760127450020,0.79465625,1237.2,1233.7,0.58272256]
[1760127450320,0.93533137,1237.7,1234.2,0.58272256]
[1760127450517,0.93533137,1237.7,1233.9,0.78184654]
[1760127450518,0.79465625,1237.6,1234.3,0.58272256]
[1760127450719,0.79465625,1237.6,1234.2,0.58272256]
[1760127451718,0.79465625,1237.5,1234.2,0.58272256]
[1760127451922,0.79465625,1237.4,1234.2,0.58272256]
[1760127452421,0.79465625,1237.2,1234.1,0.58272256]
[1760127454423,0.79465625,1237.3,1234.2,0.58272256]
[1760127454925,0.79465625,1237.3,1234.3,0.58272256]
[1760127455224,0.79465625,1237.4,1234.3,0.58272256]
[1760127455526,0.79465625,1237.6,1234.2,0.58272256]
[1760127455826,0.93533137,1237.7,1234.1,0.58272256]
[1760127456021,0.14067512,1237.7,1234.3,0.58272256]
[1760127456625,0.79465625,1237.5,1234.5,0.58272256]
[1760127456824,0.14067512,1237.7,1234.4,0.58272256]
[1760127457127,0.14067512,1237.7,1234.0,0.78184654]
[1760127457128,0.14067512,1237.7,1234.2,0.58272256]
[1760127457324,0.14067512,1237.7,1234.1,0.58272256]
[1760127457924,0.93533137,1237.7,1234.0,0.58272256]
[1760127458328,0.93533137,1237.7,1234.1,0.58272256]
[1760127458628,0.93533137,1237.7,1234.0,0.58272256]
[1760127459031,0.93533137,1237.7,1234.1,0.58272256]
[1760127459432,0.93533137,1237.7,1234.0,0.58272256]
[1760127461133,0.93533137,1237.7,1233.9,0.58272256]
[1760127461335,0.93533137,1237.7,1234.0,0.58272256]
[1760127464934,0.79465625,1237.6,1234.0,0.58272256]
[1760127465134,0.93533137,1237.7,1234.0,0.58272256]
[1760127465733,0.79465625,1237.6,1234.0,0.58272256]
[1760127466338,0.79465625,1237.6,1233.9,0.58272256]
[1760127466740,0.79465625,1237.5,1233.8,0.58272256]
[1760127466935,0.79465625,1237.4,1233.8,0.58272256]
[1760127467434,0.79465625,1237.3,1233.9,0.58272256]
[1760127468342,0.79465625,1237.0,1233.6,0.58272256]
[1760127468739,0.79465625,1237.0,1233.5,0.58272256]
[1760127469439,0.79465625,1236.8,1233.5,0.58272256]
[1760127469638,0.14067512,1237.7,1233.4,0.58272256]
[1760127469639,0.79465625,1236.7,1233.4,0.58272256]
[1760127470342,0.79465625,1236.6,1233.4,0.58272256]
[1760127471041,0.79465625,1236.7,1233.3,0.58272256]
[1760127471240,0.79465625,1236.6,1233.2,0.58272256]
[1760127471435,0.79465625,1236.6,1233.1,0.58272256]
[1760127471643,0.14091608,1235.9,1233.0,0.58272256]
[1760127471835,0.14091608,1235.9,1232.9,0.58272256]
[1760127472043,0.14091608,1235.9,1232.8,0.7235873]
[1760127472542,0.14091608,1235.9,1232.8,0.14086474]
[1760127473940,0.14091608,1235.9,1232.9,0.58272256]
[1760127475043,0.14091608,1235.9,1232.8,0.7235873]
[1760127476746,0.14091608,1235.9,1232.8,0.14086474]
[1760127481050,0.14091608,1235.9,1232.8,0.7235873]
[1760127483451,0.14091608,1235.9,1232.8,0.14086474]
[1760127483653,0.14091608,1235.9,1232.8,0.7235873]
[1760127484957,0.14091608,1235.9,1232.8,0.14086474]
[1760127488060,0.14091608,1235.9,1232.8,0.7235873]
[1760127490361,0.14091608,1235.9,1232.9,0.58272256]
[1760127490561,0.14091608,1235.9,1232.8,0.14086474]
[1760127490764,0.14091608,1235.9,1232.9,0.57902382]
[1760127492360,0.14091608,1235.9,1232.8,0.71988856]
[1760127492864,0.79465625,1235.8,1232.8,0.71988856]
[1760127493157,0.79465625,1235.8,1232.8,0.57902382]
[1760127493462,0.79465625,1235.6,1232.2,0.14102229]
[1760127493662,0.79465625,1235.5,1232.2,0.14102229]
[1760127494362,0.79465625,1235.5,1232.0,0.57902382]
[1760127494561,0.79465625,1235.4,1232.0,0.72008555]
[1760127494764,0.79465625,1235.2,1232.0,0.72008555]
[1760127495062,0.79465625,1235.1,1232.0,0.72008555]
[1760127495264,0.79465625,1235.1,1232.0,0.14106173]
[1760127496062,0.79465625,1235.2,1232.0,0.14106173]
[1760127496262,0.79465625,1235.3,1232.0,0.14106173]
[1760127496758,0.79465625,1235.2,1231.8,0.57902382]
[1760127496961,0.79465625,1235.2,1231.3,1.17276981]
[1760127496962,0.79465625,1234.9,1231.6,0.7201193]
[1760127497360,0.79465625,1234.9,1231.5,0.57902382]
[1760127497562,0.79465625,1234.9,1231.3,0.78184654]
[1760127497563,0.79465625,1234.8,1231.4,0.57902382]
[1760127497765,0.79465625,1234.7,1231.5,0.72014562]
[1760127497965,0.79465625,1234.8,1231.5,0.1411218]
[1760127498565,0.79465625,1234.7,1231.5,0.1411218]
[1760127499063,0.79465625,1235.0,1231.5,0.1411218]
[1760127499267,0.79465625,1235.1,1231.5,0.1411218]
[1760127499567,0.79465625,1235.1,1231.2,0.57902382]
[1760127499767,0.79465625,1235.0,1231.3,0.14113754]
[1760127500066,0.79465625,1235.1,1231.3,0.14113754]
[1760127500267,0.79465625,1234.8,1231.3,0.14113754]
[1760127500665,0.79465625,1234.9,1231.3,0.14113754]
[1760127501976,0.79465625,1234.8,1231.3,0.14113754]
[1760127502373,0.79465625,1234.9,1231.3,0.14113754]
[1760127502674,0.79465625,1234.8,1231.3,0.14113754]
[1760127502875,0.79465625,1234.9,1231.3,0.14113754]
[1760127503079,0.79465625,1233.8,1229.3,0.57902382]
[1760127503272,0.79465625,1234.7,1230.2,0.57902382]
[1760127503472,0.79465625,1234.8,1230.5,0.14118879]
[1760127503875,0.79465625,1234.5,1230.5,0.14118879]
[1760127504178,0.79465625,1234.6,1230.5,0.14118879]
[1760127505178,0.79465625,1234.7,1230.5,0.14118879]
[1760127505387,0.79465625,1234.6,1230.5,0.14118879]
[1760127506279,0.79465625,1234.7,1230.5,0.14118879]
[1760127506680,0.79465625,1234.5,1230.5,0.14118879]
[1760127507175,0.79465625,1234.6,1230.5,0.14118879]
[1760127507876,0.79465625,1234.7,1230.5,0.14118879]
[1760127508281,0.79465625,1234.8,1230.5,0.14118879]
[1760127508776,0.79465625,1234.7,1230.5,0.14118879]
[1760127509178,0.79465625,1234.6,1229.6,0.57902382]
[1760127509377,0.79465625,1234.6,1230.2,0.14124953]
[1760127509681,0.79465625,1234.7,1230.2,0.14124953]
[1760127511381,1.21301626,1235.1,1230.2,0.14124953]
[1760127511382,0.79465625,1234.8,1230.2,0.14124953]
[1760127512281,0.79465625,1234.9,1230.2,0.14124953]
[1760127513091,0.79465625,1235.0,1230.2,0.14124953]
[1760127514084,0.79465625,1235.2,1230.2,0.14124953]
[1760127514287,0.79465625,1235.3,1230.2,0.14124953]
[1760127514785,0.79465625,1235.4,1230.2,0.14124953]
[1760127516989,0.79465625,1235.3,1230.2,0.14124953]
[1760127517592,0.79465625,1235.2,1230.2,0.14124953]
[1760127517993,0.79465625,1235.1,1230.2,0.14124953]
[1760127518290,0.79465625,1234.9,1230.2,0.14124953]
[1760127518487,0.79465625,1234.8,1230.2,0.14124953]
[1760127518690,0.79465625,1234.9,1230.2,0.14124953]
[1760127519293,0.79465625,1234.8,1230.2,0.14124953]
[1760127519491,0.79465625,1234.3,1230.2,0.14124953]
[1760127520093,0.79465625,1234.5,1230.2,0.14124953]
[1760127520890,0.79465625,1234.4,1230.2,0.14124953]
[1760127521392,0.79465625,1234.2,1230.2,0.14124953]
[1760127522297,0.79465625,1234.3,1230.2,0.14124953]
[1760127524598,0.79465625,1234.1,1230.2,0.14124953]
[1760127526095,0.79465625,1234.2,1230.2,0.14124953]
[1760127527000,0.79465625,1234.1,1230.2,0.14124953]
[1760127527198,0.79465625,1234.2,1230.2,0.14124953]
[1760127527401,0.79465625,1234.1,1230.2,0.14124953]
[1760127527900,0.79465625,1234.2,1230.2,0.14124953]
[1760127528096,0.79465625,1234.3,1230.2,0.14124953]
[1760127529601,0.79465625,1234.6,1230.2,0.14124953]
[1760127530499,0.79465625,1234.7,1230.2,0.14124953]
[1760127531304,0.79465625,1234.9,1230.2,0.72027335]
[1760127531501,0.79465625,1235.0,1230.3,0.57902382]
[1760127532002,0.79465625,1235.2,1230.5,0.57902382]
[1760127532303,0.93557233,1235.9,1230.6,0.57902382]
[1760127532504,0.93557233,1235.9,1230.5,0.57902382]
[1760127533706,0.79465625,1235.8,1230.8,0.57902382]
[1760127534308,0.79465625,1235.7,1230.8,0.57902382]
[1760127534804,0.79465625,1235.8,1230.9,0.57902382]
[1760127536407,0.79465625,1235.7,1230.9,0.57902382]
[1760127537407,0.79465625,1235.8,1230.9,0.57902382]
[1760127537609,0.79465625,1235.7,1231.0,0.57902382]
[1760127537806,0.79465625,1235.7,1231.1,0.57902382]
[1760127538104,0.79465625,1235.7,1231.2,0.57902382]
[1760127538307,0.79465625,1234.5,1229.5,0.57902382]
[1760127538610,0.79465625,1234.6,1230.4,0.14114584]
[1760127538806,0.79465625,1234.6,1229.8,0.57902382]
[1760127539005,0.79465625,1234.6,1230.5,0.14122144]
[1760127539304,0.79465625,1234.5,1230.5,0.14122144]
[1760127539510,0.79465625,1234.4,1230.5,0.14122144]
[1760127540007,0.79465625,1234.2,1230.5,0.14122144]
[1760127540210,0.79465625,1234.4,1230.5,0.14122144]
[1760127540412,0.79465625,1234.3,1230.5,0.14122144]
[1760127540612,0.79465625,1234.0,1230.5,0.14122144]
[1760127541111,0.79465625,1233.9,1230.5,0.14122144]
[1760127542010,0.79465625,1234.2,1230.5,0.14122144]
[1760127542812,0.79465625,1233.8,1230.5,0.14122144]
[1760127543015,0.79465625,1233.9,1230.5,0.14122144]
[1760127544216,0.79465625,1233.8,1230.5,0.14122144]
[1760127544416,0.79465625,1233.7,1230.5,0.14122144]
[1760127544916,0.79465625,1234.0,1230.5,0.14122144]
[1760127545517,0.79465625,1234.1,1230.5,0.14122144]
[1760127546017,0.79465625,1234.2,1230.5,0.14122144]
[1760127546213,0.79465625,1234.3,1230.5,0.14122144]
[1760127546513,0.79465625,1234.4,1230.5,0.14122144]
[1760127548219,0.79465625,1234.3,1230.5,0.14122144]
[1760127548419,0.79465625,1234.3,1230.5,0.72028683]
[1760127548616,0.79465625,1234.0,1230.5,0.14122144]
[1760127549214,0.79465625,1233.9,1230.5,0.72028683]
[1760127549419,0.79465625,1233.9,1230.6,0.57906539]
[1760127549716,0.79465625,1233.9,1230.5,0.14122144]
[1760127550516,0.79465625,1233.8,1230.5,0.72028683]
[1760127551321,0.79465625,1233.7,1230.5,0.72028683]
[1760127551520,0.79465625,1234.2,1230.8,0.57906539]
[1760127551724,0.79465625,1234.7,1231.2,0.57906539]
[1760127552221,0.79465625,1234.6,1231.2,0.57906539]
[1760127553321,1.21301626,1234.9,1230.6,1.17276981]
[1760127553322,0.79465625,1234.5,1231.3,0.57906539]
[1760127553522,0.79465625,1234.6,1231.3,0.57906539]
[1760127553924,0.79465625,1234.6,1231.4,0.57906539]
[1760127554320,0.79465625,1234.5,1231.5,0.57906539]
[1760127554824,0.79465625,1234.3,1231.6,0.57906539]
[1760127555323,0.79465625,1234.2,1231.6,0.57906539]
[1760127555520,0.79465625,1234.3,1231.6,0.57906539]
[1760127555925,0.79465625,1234.2,1231.4,0.57906539]
[1760127557125,0.79465625,1234.1,1231.4,0.57906539]
[1760127557325,0.79465625,1234.1,1231.5,0.57906539]
[1760127558219,0.79465625,1234.1,1231.4,0.57906539]
[1760127558422,0.79465625,1234.2,1231.4,0.57906539]
[1760127559119,0.79465625,1234.0,1231.2,0.57906539]
[1760127559625,0.79465625,1233.8,1231.0,0.57906539]
[1760127560023,0.79465625,1233.8,1230.9,0.57906539]
[1760127560321,0.79465625,1233.6,1230.8,0.57906539]
[1760127560626,0.79465625,1233.5,1230.8,0.57906539]
[1760127560826,0.79465625,1233.4,1230.9,0.57906539]
[1760127561326,0.79465625,1233.4,1230.8,0.57906539]
[1760127561723,0.79465625,1233.6,1230.7,0.57906539]
[1760127563724,0.79465625,1233.7,1230.9,0.57906539]
[1760127563928,0.79465625,1233.7,1231.0,0.57906539]
[1760127564328,0.79465625,1233.7,1230.7,0.78184654]
[1760127564329,0.79465625,1233.6,1230.9,0.57906539]
[1760127565429,0.79465625,1233.7,1230.9,0.57906539]
[1760127565729,0.79465625,1233.4,1230.6,0.57906539]
[1760127565929,0.79465625,1233.4,1230.7,0.57906539]
[1760127566125,0.79465625,1233.4,1230.6,0.57906539]
[1760127567230,1.94673086,1234.8,1230.7,0.57906539]
[1760127567231,0.79465625,1233.2,1230.7,0.57906539]
[1760127567430,2.72981337,1234.7,1230.6,0.57906539]
[1760127567431,0.79465625,1233.1,1230.6,0.57906539]
[1760127568133,0.79465625,1233.6,1230.6,0.57906539]
[1760127569534,0.79465625,1233.7,1230.7,0.57906539]
[1760127569839,0.79465625,1233.7,1230.6,0.57906539]
[1760127570336,0.14091608,1235.9,1230.5,0.72028683]
[1760127570337,0.79465625,1233.5,1230.5,0.72028683]
[1760127570730,0.79465625,1233.2,1230.6,0.57906539]
[1760127570934,0.79465625,1233.0,1230.5,0.57906539]
[1760127571430,0.79465625,1233.1,1230.5,0.57906539]
[1760127571835,0.79465625,1233.3,1230.4,0.57906539]
[1760127572134,0.79465625,1233.3,1230.5,0.57906539]
[1760127572530,0.79465625,1233.4,1230.5,0.57906539]
[1760127573833,0.79465625,1233.4,1230.4,0.57906539]
[1760127574234,0.79465625,1233.5,1230.4,0.57906539]
[1760127578346,0.79465625,1233.4,1230.4,0.57906539]
[1760127578543,0.79465625,1233.4,1230.5,0.57906539]
[1760127579348,0.79465625,1233.6,1230.3,0.14126272]
[1760127579544,0.79465625,1233.4,1230.3,0.14126272]
[1760127580246,0.79465625,1233.2,1230.3,0.72032811]
[1760127580441,0.79465625,1233.1,1230.3,0.72032811]
[1760127580645,0.79465625,1233.2,1230.4,0.57906539]
[1760127581245,0.79465625,1233.1,1230.3,0.14126272]
[1760127581547,0.79465625,1233.5,1230.3,0.14126272]
[1760127582445,0.79465625,1233.4,1229.9,0.57906539]
[1760127582745,0.79465625,1233.4,1230.1,0.14128623]
[1760127583249,0.79465625,1233.0,1230.1,0.72035162]
[1760127583448,0.79465625,1232.9,1230.1,0.14128623]
[1760127584444,0.79465625,1233.0,1230.1,0.72035162]
[1760127585648,0.79465625,1232.9,1230.2,0.57906539]
[1760127586347,0.79465625,1232.9,1230.1,0.72035162]
[1760127587352,0.79465625,1233.1,1230.1,0.72035162]
[1760127588955,0.79465625,1233.1,1230.2,0.57906539]
[1760127589354,0.79465625,1233.1,1230.1,0.72035162]
[1760127589655,0.79465625,1233.2,1230.2,0.57906539]
[1760127589858,0.79465625,1233.3,1230.4,0.57906539]
[1760127590659,0.79465625,1233.4,1230.3,0.57906539]
[1760127590861,0.79465625,1233.5,1230.5,0.57906539]
[1760127594358,0.79465625,1233.3,1230.5,0.57906539]
[1760127594562,0.79465625,1233.2,1230.4,0.57906539]
[1760127594757,0.79465625,1233.3,1230.3,0.57906539]
[1760127594957,0.79465625,1233.3,1230.2,0.57906539]
[1760127595261,0.79465625,1233.2,1230.3,0.57906539]
[1760127595662,0.79465625,1233.2,1230.2,0.57906539]
[1760127596358,0.79465625,1233.1,1230.3,0.57906539]
[1760127597058,0.79465625,1233.2,1230.3,0.57906539]
[1760127597260,0.79465625,1233.1,1230.3,0.57906539]
[1760127597756,0.79465625,1233.1,1230.5,0.57906539]
[1760127597959,0.79465625,1233.1,1230.4,0.57906539]
[1760127598760,0.79465625,1233.2,1230.7,0.57906539]
[1760127598959,0.79465625,1233.2,1230.8,0.57906539]
[1760127599463,0.79465625,1233.0,1230.8,0.57906539]
[1760127599662,0.79465625,1233.1,1230.8,0.57906539]
[1760127599958,0.79465625,1233.1,1230.9,0.57906539]
[1760127601262,0.79465625,1233.3,1230.8,0.57906539]
[1760127602565,0.79465625,1233.4,1230.8,0.57906539]
[1760127603063,0.79465625,1233.4,1230.6,0.57906539]
[1760127603266,0.79465625,1233.3,1230.5,0.57906539]
[1760127603464,0.79465625,1232.9,1230.6,0.57906539]
[1760127603667,0.79465625,1232.9,1230.5,0.57906539]
[1760127603962,0.79465625,1232.8,1230.5,0.57906539]
[1760127604161,0.79465625,1232.7,1230.5,0.57906539]
[1760127604366,0.79465625,1232.7,1230.4,0.57906539]
[1760127604866,0.79465625,1232.8,1230.5,0.57906539]
[1760127605366,0.79465625,1232.7,1230.4,0.57906539]
[1760127605563,0.79465625,1232.7,1230.3,0.57906539]
[1760127605763,0.79465625,1232.9,1230.2,0.57906539]
[1760127606067,0.79465625,1232.7,1230.1,0.72035162]
[1760127606967,0.79465625,1232.6,1229.9,0.57906539]
[1760127607166,0.79465625,1232.6,1230.0,0.57906539]
[1760127607964,0.79465625,1232.5,1229.9,0.72038375]
[1760127608168,1.94673086,1234.1,1229.9,0.72038375]
[1760127608169,0.79465625,1232.4,1229.9,0.72038375]
[1760127609369,1.21301626,1232.7,1229.9,0.72038375]
[1760127609370,0.79465625,1232.5,1229.9,0.72038375]
[1760127609869,0.79465625,1232.3,1229.9,0.72038375]
[1760127611172,0.79465625,1232.3,1229.6,0.78184654]
[1760127611173,0.79465625,1232.5,1229.6,0.57906539]
[1760127611376,0.79465625,1232.5,1229.5,0.72042451]
[1760127611968,0.79465625,1232.3,1229.5,0.14135912]
[1760127612673,0.79465625,1232.4,1229.5,0.72042451]
[1760127612870,0.79465625,1232.3,1229.7,0.57906539]
[1760127613073,0.79465625,1232.3,1229.5,0.92320566]
[1760127613074,0.79465625,1232.4,1229.8,0.57906539]
[1760127613374,0.79465625,1232.3,1229.8,0.57906539]
[1760127613673,0.79465625,1232.4,1229.6,0.57906539]
[1760127613869,0.79465625,1232.4,1229.5,0.72042451]
[1760127614173,0.79465625,1232.4,1229.6,0.57906539]
[1760127614369,0.79465625,1232.3,1229.6,0.57906539]
[1760127614573,0.79465625,1232.4,1229.6,0.57906539]
[1760127614771,0.79465625,1232.3,1229.6,0.57906539]
[1760127615773,0.79465625,1232.2,1229.6,0.57906539]
[1760127616877,0.79465625,1232.3,1229.6,0.57906539]
[1760127617177,0.79465625,1232.2,1229.7,0.57906539]
[1760127617377,0.79465625,1232.1,1229.7,0.57906539]
[1760127617582,0.79465625,1232.1,1229.8,0.57906539]
[1760127617784,0.79465625,1232.1,1229.9,0.57906539]
[1760127619778,0.79465625,1232.0,1229.9,0.57906539]
[1760127619981,0.79465625,1231.9,1229.8,0.57906539]
[1760127621484,0.79465625,1231.9,1229.7,0.57906539]
[1760127622383,0.79465625,1231.8,1229.6,0.57906539]
[1760127622884,0.79465625,1231.8,1229.7,0.57906539]
[1760127623281,0.79465625,1231.9,1229.6,0.57906539]
[1760127623584,0.79465625,1231.9,1229.7,0.57906539]
[1760127623780,0.79465625,1232.0,1229.7,0.57906539]
[1760127623984,0.79465625,1232.1,1229.8,0.57906539]
[1760127624186,0.79465625,1232.3,1229.5,0.57906539]
[1760127624485,0.79465625,1232.2,1229.5,0.57906539]
[1760127624685,0.79465625,1231.9,1229.3,0.57906539]
[1760127625481,0.79465625,1231.8,1229.3,0.57906539]
[1760127626482,0.79465625,1231.7,1229.2,0.57906539]
[1760127626680,0.79465625,1231.7,1229.1,0.72045437]
[1760127627084,0.79465625,1232.3,1229.1,0.72045437]
[1760127627282,0.79465625,1232.4,1229.1,0.72045437]
[1760127627785,0.79465625,1232.3,1229.2,0.57906539]
[1760127628582,0.79465625,1232.0,1229.4,0.57906539]
[1760127628789,0.79465625,1232.1,1229.4,0.57906539]
[1760127629383,0.79465625,1232.1,1229.5,0.57906539]
[1760127629588,0.79465625,1232.1,1229.6,0.57906539]
[1760127629788,0.79465625,1232.2,1229.6,0.57906539]
[1760127630390,0.79465625,1232.1,1229.3,0.57906539]
[1760127631287,2.72981337,1234.5,1229.5,0.57906539]
[1760127631288,0.79465625,1232.3,1229.5,0.57906539]
[1760127631489,0.79465625,1232.2,1229.6,0.57906539]
[1760127631692,0.79465625,1232.3,1229.7,0.57906539]
[1760127631989,0.79465625,1232.7,1230.0,0.57906539]
[1760127632284,0.79465625,1232.6,1230.0,0.57906539]
[1760127632889,0.79465625,1232.7,1230.0,0.57906539]
[1760127635089,0.79465625,1232.6,1230.0,0.57906539]
[1760127635990,0.79465625,1232.6,1229.7,0.57906539]
[1760127636798,0.79465625,1232.7,1229.7,0.57906539]
[1760127640898,0.79465625,1232.6,1229.7,0.57906539]
[1760127642702,0.79465625,1232.6,1229.1,0.14138898]
[1760127642703,0.79465625,1232.6,1229.9,0.57906539]
[1760127643703,0.79465625,1232.5,1229.9,0.57906539]
[1760127644295,0.79465625,1232.4,1230.0,0.57906539]
[1760127645200,0.79465625,1232.3,1230.0,0.57906539]
[1760127645896,0.79465625,1232.5,1230.2,0.57906539]
[1760127646101,0.79465625,1232.7,1230.4,0.57906539]
[1760127646597,0.79465625,1232.7,1230.0,0.57906539]
[1760127647402,0.79465625,1232.4,1230.0,0.57906539]
[1760127647601,0.79465625,1232.3,1230.0,0.57906539]
[1760127647898,0.79465625,1232.4,1229.9,0.57906539]
[1760127648303,0.79465625,1232.8,1229.8,0.57906539]
[1760127648503,0.79465625,1232.9,1230.0,0.57906539]
[1760127650405,0.79465625,1233.0,1230.1,0.57906539]
[1760127650605,0.79465625,1232.9,1230.1,0.57906539]
[1760127650815,0.79465625,1233.0,1230.2,0.57906539]
[1760127651701,0.79465625,1232.9,1230.2,0.57906539]
[1760127652103,0.79465625,1232.6,1230.3,0.57906539]
[1760127652504,0.79465625,1232.5,1230.2,0.57906539]
[1760127653104,0.79465625,1232.9,1230.2,0.57906539]
[1760127653304,0.79465625,1232.9,1230.3,0.57906539]
[1760127655209,0.79465625,1232.8,1230.3,0.57906539]
[1760127655404,0.79465625,1232.9,1230.5,0.57906539]
[1760127655710,0.79465625,1232.8,1230.5,0.57906539]
[1760127659314,0.79465625,1232.8,1230.6,0.57906539]
[1760127659515,0.79465625,1232.8,1230.5,0.57906539]
[1760127660814,0.79465625,1232.9,1230.6,0.57906539]
[1760127661015,0.79465625,1232.8,1230.6,0.57906539]
[1760127661212,0.79465625,1232.9,1230.5,0.57906539]
[1760127661415,0.79465625,1233.0,1230.5,0.57906539]
[1760127661617,0.79465625,1233.3,1230.8,0.57906539]
[1760127661820,0.79465625,1233.3,1230.9,0.57906539]
[1760127663321,0.79465625,1233.1,1231.0,0.57906539]
[1760127663520,0.79465625,1233.2,1231.1,0.57906539]
[1760127664322,0.79465625,1233.3,1231.2,0.57906539]
[1760127664519,0.79465625,1233.4,1231.2,0.57906539]
[1760127664822,0.79465625,1233.6,1231.3,0.57906539]
[1760127665519,0.79465625,1233.7,1231.3,0.57906539]
[1760127666221,0.79465625,1233.6,1231.2,0.57906539]
[1760127667120,0.79465625,1233.6,1231.1,0.57906539]
[1760127667419,0.79465625,1233.5,1230.8,0.57906539]
[1760127667620,0.79465625,1233.4,1230.7,0.57906539]
[1760127668221,0.79465625,1233.1,1230.7,0.57906539]
[1760127669025,0.79465625,1232.9,1230.4,0.57906539]
[1760127669325,0.79465625,1232.8,1230.4,0.57906539]
[1760127669524,0.79465625,1232.8,1230.3,0.57906539]
[1760127670521,0.79465625,1232.9,1230.2,0.57906539]
[1760127671024,0.79465625,1233.0,1230.2,0.57906539]
[1760127671324,0.79465625,1232.9,1230.2,0.57906539]
[1760127671725,0.79465625,1233.3,1230.2,0.57906539]
[1760127671930,0.14124953,1232.7,1230.9,0.57906539]
[1760127672127,0.14124953,1232.7,1231.0,0.57906539]
[1760127673127,0.14124953,1232.7,1230.9,0.57906539]
[1760127674623,0.79465625,1233.8,1230.9,0.57906539]
[1760127674827,0.79465625,1233.8,1231.0,0.57906539]
[1760127675024,0.14119222,1232.9,1231.0,0.57906539]